bitfinex/quotes_ETHUSD_20240823
["timestamp","ask_amount","ask_price","bid_price","bid_amount"]
[1724421336382,3.76181,2658.3,2658.0,0.06347177]
[1724421337140,3.76166,2658.4,2658.0,0.06347177]
[1724421338279,3.76139,2658.6,2658.1,3.76208]
[1724421338485,3.76116,2658.8,2658.3,3.76178]
[1724421338684,0.59014963,2659.1,2658.2,2.38683672]
[1724421338685,3.76151,2658.6,2658.2,2.38683672]
[1724421338856,3.76151,2658.6,2658.4,0.06273593]
[1724421339187,3.76151,2658.6,2658.2,2.3236]
[1724421339188,3.76151,2658.6,2658.5,0.06261844]
[1724421339676,3.76147,2658.6,2658.2,2.3236]
[1724421339858,3.76147,2658.6,2658.5,0.06261844]
[1724421340056,3.76118,2658.8,2658.2,2.3236]
[1724421340260,3.76118,2658.8,2658.5,0.06261844]
[1724421340579,3.76118,2658.8,2658.3,3.76178]
[1724421340580,7.5224,2658.8,2658.3,3.76178]
[1724421340877,7.52184,2659.0,2658.6,2.38080095]
[1724421341078,7.52184,2659.0,2658.6,2.3183]
[1724421341079,3.7609,2659.0,2658.6,2.3183]
[1724421341265,3.7609,2659.0,2658.7,0.06238347]
[1724421341648,3.76109,2658.8,2658.7,0.06238347]
[1724421343985,3.7609,2659.0,2658.7,0.06238347]
[1724421348404,0.59014963,2659.1,2658.7,4.43774882]
[1724421348603,3.76042,2659.3,2658.9,2.3717]
[1724421349015,3.76042,2659.3,2659.0,0.06181478]
[1724421349536,3.76054,2659.2,2659.0,0.06181478]
[1724421350217,3.76067,2659.1,2659.0,0.06181478]
[1724421351113,3.76052,2659.3,2659.0,0.06181478]
[1724421351325,3.76054,2659.2,2659.0,0.06181478]
[1724421351499,3.76039,2659.3,2659.0,0.06181478]
[1724421351704,3.76034,2659.4,2659.0,0.06181478]
[1724421351705,3.76055,2659.2,2659.0,0.06181478]
[1724421352340,3.76067,2659.1,2659.0,0.06181478]
[1724421352530,3.76067,2659.1,2658.7,2.3373]
[1724421352843,3.76055,2659.2,2658.8,0.06204968]
[1724421353405,3.76039,2659.3,2658.9,2.3255]
[1724421353865,3.76039,2659.3,2659.0,0.06181478]
[1724421355609,3.76034,2659.4,2659.0,0.06181478]
[1724421356050,5.4055,2659.9,2659.0,3.82259478]
[1724421356258,4.41884165,2660.3,2659.1,6.75459948]
[1724421356259,3.75995,2659.7,2659.1,6.75459948]
[1724421356616,3.75998,2659.6,2659.2,0.0611815]
[1724421356812,3.76038,2659.3,2659.2,0.0611815]
[1724421357220,3.76038,2659.3,2658.9,7.49]
[1724421357529,3.76071,2659.1,2658.9,7.49]
[1724421357864,3.76081,2659.0,2658.9,7.49]
[1724421358217,7.52162,2659.0,2658.9,7.49]
[1724421358438,3.76081,2659.0,2658.9,7.49]
[1724421358639,7.52162,2659.0,2658.9,7.49]
[1724421358856,3.76081,2659.0,2658.9,7.49]
[1724421359558,3.76137,2658.6,2658.2,9.839]
[1724421359733,3.76132,2658.7,2658.2,2.349]
[1724421360130,3.76104,2658.9,2658.2,6.11083]
[1724421360340,3.76075,2659.1,2658.5,3.76151]
[1724421360531,3.76083,2659.0,2658.6,2.3095]
[1724421361763,3.76075,2659.1,2658.6,2.3095]
[1724421362063,3.76057,2659.2,2658.6,7.054055]
[1724421362439,3.76057,2659.2,2658.6,10.815345]
[1724421362660,3.76057,2659.2,2658.6,7.054045]
[1724421363248,2.3646,2659.6,2658.6,3.292755]
[1724421363549,3.76076,2659.1,2658.6,2.3095]
[1724421363755,4.54659,2659.5,2658.6,2.3095]
[1724421363954,3.76082,2659.0,2658.6,2.3095]
[1724421365157,3.76078,2659.1,2658.6,2.3095]
[1724421365528,3.76088,2659.0,2658.6,2.3095]
[1724421366226,3.76078,2659.1,2658.6,3.665607]
[1724421366426,3.76078,2659.1,2658.6,7.426907]
[1724421367353,9.11242378,2659.3,2658.6,7.426907]
[1724421367566,1.59154378,2659.3,2658.6,3.665607]
[1724421367754,4.31011,2659.5,2658.6,2.3095]
[1724421367755,3.76085,2659.0,2658.6,2.3095]
[1724421369673,3.76051,2659.3,2658.6,6.07087]
[1724421369841,7.52102,2659.3,2658.8,3.76108]
[1724421370047,3.76052,2659.2,2658.8,0.978355]
[1724421370465,3.76038,2659.3,2658.8,4.739425]
[1724421370974,4.3102,2659.5,2658.8,4.739425]
[1724421370975,3.7602,2659.5,2659.0,3.76073]
[1724421371330,3.7602,2659.5,2659.0,4.8430085]
[1724421371737,3.75992,2659.7,2659.0,4.8429985]
[1724421371974,3.75992,2659.7,2659.2,2.2757]
[1724421371975,3.76012,2659.5,2659.2,2.2757]
[1724421372288,3.76025,2659.4,2659.2,2.2757]
[1724421372837,3.76038,2659.3,2659.2,2.2757]
[1724421373044,3.76006,2659.6,2659.2,2.2757]
[1724421373246,3.76019,2659.5,2659.2,2.2757]
[1724421374566,3.76019,2659.5,2659.3,0.05889825]
[1724421374762,3.76019,2659.5,2659.2,2.2757]
[1724421375093,3.76019,2659.5,2659.3,0.05889825]
[1724421375574,3.76006,2659.6,2659.2,2.2757]
[1724421375780,7.52013,2659.6,2659.3,0.05876551]
[1724421375999,7.52013,2659.6,2659.2,2.2757]
[1724421376139,3.7601,2659.5,2659.4,0.0586481]
[1724421376348,3.7601,2659.5,2659.2,2.2757]
[1724421376539,3.7601,2659.5,2659.3,0.05876551]
[1724421376740,3.7601,2659.5,2659.2,2.2757]
[1724421376962,3.7601,2659.5,2659.3,0.05876551]
[1724421377163,3.7601,2659.5,2659.2,2.2757]
[1724421377379,3.7601,2659.5,2659.3,0.05876551]
[1724421377581,3.76024,2659.4,2658.9,2.3804]
[1724421377813,3.76024,2659.4,2659.0,1.42225481]
[1724421378082,3.76047,2659.3,2659.0,1.42225481]
[1724421378291,3.75933,2660.1,2659.0,0.05911781]
[1724421378292,3.7606,2659.2,2659.0,0.05911781]
[1724421378442,2.4704,2659.6,2659.0,0.05911781]
[1724421378443,7.52134,2659.1,2659.0,0.05911781]
[1724421378980,7.52134,2659.1,2658.8,7.49]
[1724421378981,3.76091,2659.0,2658.8,7.49]
[1724421379147,3.76124,2658.7,2658.4,2.4074]
[1724421379480,2.3543,2659.2,2658.4,2.4074]
[1724421379481,7.52205,2658.9,2658.4,2.4074]
[1724421379693,3.76096,2658.9,2658.4,2.4074]
[1724421379849,3.76096,2658.9,2658.4,3.4005]
[1724421380046,3.76096,2658.9,2658.4,7.16213]
[1724421380777,3.76047,2659.3,2658.6,3.76136]
[1724421380966,3.76047,2659.3,2658.9,2.2599]
[1724421382474,7.52095,2659.3,2658.9,2.2599]
[1724421382671,7.52093,2659.3,2658.9,2.2599]
[1724421382864,3.76046,2659.3,2658.9,2.2599]
[1724421384289,3.76019,2659.5,2658.9,2.861997]
[1724421384604,3.76032,2659.4,2658.9,2.861997]
[1724421386733,3.76049,2659.3,2658.9,2.861997]
[1724421386939,3.76057,2659.2,2658.9,2.861997]
[1724421387135,3.76057,2659.2,2658.9,2.2599]
[1724421387445,3.76049,2659.3,2658.9,2.2599]
[1724421389200,7.52101,2659.3,2658.9,2.2599]
[1724421389398,3.76049,2659.3,2658.9,2.2599]
[1724421389613,3.76049,2659.3,2659.0,0.05907229]
[1724421390443,3.76067,2659.1,2659.0,0.05907229]
[1724421390788,3.76067,2659.1,2658.7,2.4764]
[1724421390993,7.52146,2659.1,2658.8,0.05929962]
[1724421391193,3.76067,2659.1,2658.8,0.05929962]
[1724421392042,7.52144,2659.1,2658.8,0.05929962]
[1724421392189,7.52143,2659.1,2658.8,0.05929962]
[1724421392390,3.76067,2659.1,2658.8,0.05929962]
[1724421393096,7.52097,2659.3,2658.8,0.68900558]
[1724421393430,3.76026,2659.4,2658.8,0.68900558]
[1724421393588,3.76012,2659.5,2658.9,3.76093]
[1724421393589,3.76039,2659.3,2658.9,3.76093]
[1724421393785,3.76039,2659.3,2658.8,0.68900558]
[1724421393786,3.76039,2659.3,2659.0,0.05910643]
[1724421394007,3.76039,2659.3,2658.8,4.39079596]
[1724421394214,3.76052,2659.2,2659.1,0.05898899]
[1724421394427,3.7604,2659.3,2658.7,6.23763]
[1724421394627,3.7604,2659.3,2659.1,0.0589852]
[1724421394925,3.7604,2659.3,2658.8,3.76096]
[1724421395135,3.7604,2659.3,2659.2,0.05886776]
[1724421395333,3.7604,2659.3,2658.8,3.76096]
[1724421395505,3.7604,2659.3,2659.2,0.05886776]
[1724421395826,3.7604,2659.3,2659.2,0.0588488]
[1724421396193,3.76056,2659.2,2658.7,13.72763]
[1724421396394,3.76056,2659.2,2658.8,0.05932237]
[1724421397193,3.76076,2659.1,2658.8,0.05932237]
[1724421398006,3.76083,2659.0,2658.8,0.05932237]
[1724421398316,3.76067,2659.1,2658.8,0.05932237]
[1724421398495,3.76067,2659.1,2658.8,1.56651961]
[1724421398695,7.52102,2659.3,2658.9,2.3892]
[1724421399107,3.76057,2659.2,2659.0,0.05912918]
[1724421399494,3.76067,2659.1,2659.0,0.05912918]
[1724421399693,3.76035,2659.4,2659.0,0.05912918]
[1724421400106,3.76035,2659.4,2658.7,9.8332]
[1724421400322,3.76046,2659.3,2659.1,0.05902691]
[1724421400526,3.76034,2659.4,2658.8,4.74432]
[1724421400698,3.76034,2659.4,2659.2,0.05890948]
[1724421400894,3.76005,2659.6,2659.0,2.4736]
[1724421401115,3.76005,2659.6,2659.3,0.05879205]
[1724421401315,3.76005,2659.6,2659.1,3.76059]
[1724421401634,2.3199,2659.9,2659.4,0.05861395]
[1724421401635,7.5202,2659.5,2659.4,0.05861395]
[1724421401830,7.5202,2659.5,2659.0,2.4736]
[1724421401831,3.76035,2659.4,2659.0,2.4736]
[1724421402235,3.7601,2659.5,2659.0,2.4736]
[1724421402399,2.3199,2660.1,2659.2,2.4736]
[1724421402597,3.75934,2660.1,2659.5,6.23366]
[1724421403198,7.51869,2660.1,2659.5,6.23366]
[1724421403399,9.7799,2660.4,2659.5,7.233004]
[1724421403400,3.75905,2660.3,2659.5,7.233004]
[1724421403600,3.75905,2660.3,2659.8,3.75965]
[1724421403915,3.75905,2660.3,2659.7,3.75972]
[1724421404134,3.75905,2660.3,2659.8,2.54878284]
[1724421404637,3.75905,2660.3,2659.9,0.05799288]
[1724421405616,3.75876,2660.5,2659.9,0.05799288]
[1724421405815,3.75887,2660.4,2659.9,0.05799288]
[1724421406012,3.75912,2660.2,2659.9,0.05799288]
[1724421406640,3.75907,2660.3,2659.9,0.05799288]
[1724421406641,3.75927,2660.1,2659.9,0.05799288]
[1724421407609,3.75939,2660.0,2659.9,0.05799288]
[1724421407943,3.75927,2660.1,2659.5,2.4154]
[1724421408105,7.51865,2660.1,2659.9,0.05771989]
[1724421408309,4.748635,2660.1,2659.5,2.4154]
[1724421408542,7.5186,2660.1,2660.0,0.05760253]
[1724421408750,3.75912,2660.2,2659.6,6.17534]
[1724421409120,3.983713,2660.5,2659.7,0.05798118]
[1724421409121,3.75938,2660.1,2659.7,0.05798118]
[1724421409647,3.75937,2660.1,2659.7,0.05798118]
[1724421410555,3.75945,2660.0,2659.7,0.05798118]
[1724421410944,3.75893,2660.4,2659.8,6.04009]
[1724421411119,3.75893,2660.4,2659.8,7.51918]
[1724421411318,3.75893,2660.4,2659.9,6.09745792]
[1724421411523,3.75893,2660.4,2659.9,2.33792792]
[1724421413256,3.75893,2660.4,2659.9,3.34837152]
[1724421413458,15.03765652,2661.2,2659.9,3.34837152]
[1724421413459,3.7585,2660.7,2660.1,2.2523]
[1724421413824,3.7587,2660.5,2660.2,0.05693942]
[1724421414156,3.7585,2660.7,2660.2,0.05693942]
[1724421414355,3.75841,2660.7,2660.3,2.329]
[1724421414857,3.75841,2660.7,2660.4,0.05670096]
[1724421415632,0.07487018,2660.8,2660.4,0.05670096]
[1724421415833,3.75869,2660.5,2660.4,0.05670096]
[1724421416040,3.75869,2660.5,2660.1,2.253]
[1724421416240,3.75869,2660.5,2660.4,0.05661381]
[1724421416445,3.75843,2660.7,2660.2,3.7591]
[1724421416655,3.75843,2660.7,2660.4,0.05656835]
[1724421416860,3.75764,2661.3,2660.5,2.334]
[1724421417020,2.4652,2661.6,2660.5,2.39045103]
[1724421417021,3.7582,2660.9,2660.5,2.39045103]
[1724421417221,3.75787,2661.1,2660.5,2.39045103]
[1724421417756,3.75787,2661.1,2660.6,3.75845]
[1724421417955,3.75785,2661.1,2660.7,2.4836]
[1724421418131,3.75785,2661.1,2660.7,2.53981263]
[1724421418731,7.51578,2661.1,2660.7,2.53981263]
[1724421419138,3.75798,2661.0,2660.7,2.53981263]
[1724421419459,3.75826,2660.9,2660.7,0.05621263]
[1724421419658,3.75822,2660.9,2660.7,0.05621263]
[1724421419842,3.0,2661.6,2660.8,2.4952]
[1724421420045,3.75743,2661.4,2660.8,2.55129534]
[1724421420730,7.51494,2661.4,2660.8,6.30945534]
[1724421420935,3.75743,2661.4,2660.8,6.30945534]
[1724421421543,3.75766,2661.3,2660.8,6.30945534]
[1724421421746,3.75791,2661.1,2660.8,0.05609534]
[1724421422068,2.796643,2661.4,2660.5,2.4709]
[1724421422391,3.7579,2661.1,2660.9,0.05597806]
[1724421422535,6.554143,2661.4,2660.5,2.4709]
[1724421422735,3.75793,2661.1,2661.0,0.05546672]
[1724421422986,3.75811,2661.0,2660.5,2.4709]
[1724421423530,3.75805,2661.0,2660.5,2.4709]
[1724421424355,3.75819,2660.9,2660.5,2.4709]
[1724421425705,3.75829,2660.8,2660.5,2.4709]
[1724421426606,3.75829,2660.8,2660.4,7.49]
[1724421426794,3.75848,2660.7,2660.2,6.05801]
[1724421427107,3.75848,2660.7,2660.3,1.4672947]
[1724421427905,3.75828,2660.8,2660.3,1.4672947]
[1724421428408,3.75791,2661.1,2660.5,3.75866]
[1724421428873,3.75807,2661.0,2660.5,3.75866]
[1724421429074,2.3814,2661.3,2660.4,2.342]
[1724421429264,3.7583,2660.8,2660.4,2.342]
[1724421429471,7.51665,2660.8,2660.4,2.342]
[1724421429682,3.7583,2660.8,2660.4,2.342]
[1724421430002,7.51666,2660.8,2660.4,2.342]
[1724421430201,3.7583,2660.8,2660.4,2.342]
[1724421430421,7.51666,2660.8,2660.4,2.342]
[1724421430996,3.75843,2660.7,2660.4,2.342]
[1724421431185,3.7583,2660.8,2660.4,2.342]
[1724421431385,3.75841,2660.7,2660.4,2.342]
[1724421433751,3.75841,2660.7,2660.4,3.75660259]
[1724421434119,3.75858,2660.6,2660.4,1.41460259]
[1724421434327,3.75869,2660.5,2660.4,1.41460259]
[1724421434534,13.952839,2660.5,2660.4,1.41460259]
[1724421434739,14.502839,2660.5,2660.4,1.41460259]
[1724421435138,25.08147552,2660.5,2660.4,1.01872544]
[1724421435372,28.84016552,2660.5,2660.4,5.44e-06]
[1724421438057,25.08147552,2660.5,2660.4,5.44e-06]
[1724421440024,28.84016552,2660.5,2660.4,5.44e-06]
[1724421443285,28.84016552,2660.5,2658.9,2.3354]
[1724421443286,3.76044,2659.3,2658.9,2.3354]
[1724421443489,3.76067,2659.1,2659.0,0.23354]
[1724421443786,3.76081,2659.0,2658.9,2.3354]
[1724421447679,7.52162,2659.0,2658.9,2.3354]
[1724421448205,3.76105,2658.9,2658.5,2.4663]
[1724421448600,3.76111,2658.8,2658.5,2.4663]
[1724421448899,3.76111,2658.8,2658.5,3.838108]
[1724421449502,3.76081,2659.0,2658.6,2.4653118]
[1724421450004,7.52175,2659.0,2658.6,2.4653118]
[1724421450201,3.0,2659.5,2659.0,2.438]
[1724421450403,11.21885,2660.4,2659.0,2.438]
[1724421450404,3.76039,2659.3,2659.0,2.6818]
[1724421450609,3.76066,2659.2,2659.1,0.05896623]
[1724421452670,7.52132,2659.2,2659.1,0.05896623]
[1724421453099,3.7609,2659.0,2658.7,2.4834]
[1724421453505,3.7609,2659.0,2658.8,0.05923893]
[1724421454307,3.0,2659.6,2658.9,2.4255]
[1724421454479,3.76033,2659.4,2658.9,2.4255]
[1724421454683,3.76033,2659.4,2659.0,0.05909885]
[1724421454684,3.76055,2659.2,2659.0,0.05909885]
[1724421455199,3.76067,2659.1,2659.0,0.05909885]
[1724421455624,7.52134,2659.1,2659.0,0.05909885]
[1724421456033,7.52134,2659.1,2658.6,2.4742]
[1724421456034,3.761,2658.9,2658.6,2.4742]
[1724421456235,3.76119,2658.8,2658.6,2.4742]
[1724421457623,3.76094,2659.0,2658.6,2.4742]
[1724421458043,3.76098,2658.9,2658.6,2.4742]
[1724421460127,7.52201,2658.9,2658.6,2.4742]
[1724421460327,3.76098,2658.9,2658.6,2.4742]
[1724421461078,3.76098,2658.9,2658.7,0.0594626]
[1724421462091,3.76109,2658.8,2658.7,0.0594626]
[1724421462244,7.52218,2658.8,2658.7,0.0594626]
[1724421462428,8.23775862,2658.8,2658.7,0.0594626]
[1724421462767,3.76147,2658.6,2658.4,7.49]
[1724421463094,3.76147,2658.6,2658.3,2.3483]
[1724421464244,3.76155,2658.5,2658.3,2.3483]
[1724421464643,3.76155,2658.5,2658.4,0.05991369]
[1724421465355,4.35121593,2658.7,2658.4,0.05991369]
[1724421465656,3.76145,2658.6,2658.4,0.05991369]
[1724421466037,3.76151,2658.5,2658.4,0.05991369]
[1724421468072,4.35122593,2658.7,2658.4,0.30073506]
[1724421468592,3.76139,2658.6,2658.4,0.05991369]
[1724421468789,4.35122593,2658.7,2658.4,0.05991369]
[1724421468790,3.76151,2658.5,2658.4,0.05991369]
[1724421468991,7.52302,2658.5,2658.4,0.05991369]
[1724421469466,3.76166,2658.4,2658.1,2.3464]
[1724421469991,4.35129593,2658.7,2658.1,3.706266]
[1724421470267,3.76164,2658.5,2658.1,2.3464]
[1724421472083,3.76168,2658.4,2658.1,2.3464]
[1724421472290,3.76189,2658.3,2658.0,7.49]
[1724421472468,3.76194,2658.2,2658.0,7.49]
[1724421473175,3.76168,2658.4,2658.0,7.49]
[1724421473551,3.76181,2658.3,2658.0,7.49]
[1724421473948,3.76168,2658.4,2658.0,7.49]
[1724421474382,3.76168,2658.4,2657.9,6.04104]
[1724421474585,3.76168,2658.4,2657.9,9.018385]
[1724421474981,3.76168,2658.4,2657.9,5.256045]
[1724421475358,7.52296,2658.6,2658.0,3.7622]
[1724421475693,6.76152,2658.5,2658.0,3.7622]
[1724421476074,3.76168,2658.4,2657.9,9.018405]
[1724421476586,0.58995593,2658.7,2658.4,3.76156]
[1724421476786,0.58995593,2658.7,2658.6,2.308]
[1724421477858,3.76089,2659.0,2658.6,2.308]
[1724421478057,3.76126,2658.7,2658.3,2.2918]
[1724421478293,3.76126,2658.7,2658.3,2.897169]
[1724421479064,7.52261,2658.7,2658.3,2.2918]
[1724421479264,7.52259,2658.7,2658.3,2.2918]
[1724421479466,3.76126,2658.7,2658.3,2.2918]
[1724421479697,3.76126,2658.7,2658.4,0.06017163]
[1724421480378,4.35095405,2658.9,2658.4,0.06017163]
[1724421480796,4.35095405,2658.9,2658.4,3.82180163]
[1724421480987,8.11199405,2658.9,2658.4,3.82180163]
[1724421481206,4.35095405,2658.9,2658.4,3.82180163]
[1724421481587,4.35095405,2658.9,2658.4,4.80935279]
[1724421481987,4.35095405,2658.9,2658.5,2.3399]
[1724421482385,4.35095405,2658.9,2658.6,0.05992907]
[1724421482598,0.58991405,2658.9,2658.6,3.82119907]
[1724421482800,3.76048,2659.3,2658.9,2.2703]
[1724421483224,7.52097,2659.3,2659.0,0.05942507]
[1724421483512,3.76047,2659.3,2659.0,0.05942507]
[1724421483745,3.76054,2659.2,2659.0,0.05942507]
[1724421484012,3.76081,2659.0,2658.7,2.4667]
[1724421484175,3.76081,2659.0,2658.6,7.49]
[1724421484569,3.76067,2659.1,2658.6,7.49]
[1724421484981,3.76067,2659.1,2658.6,7.39]
[1724421485212,3.76067,2659.1,2658.6,11.15128]
[1724421485375,3.76045,2659.3,2658.6,12.513078]
[1724421485376,7.52096,2659.3,2658.6,12.513078]
[1724421485713,3.76072,2659.1,2658.6,12.513078]
[1724421486031,3.76055,2659.2,2658.6,14.91256]
[1724421486180,3.76055,2659.2,2658.7,3.76121]
[1724421486378,3.76032,2659.4,2658.8,3.76107]
[1724421486627,3.76032,2659.4,2658.7,2.4906]
[1724421486785,3.76053,2659.2,2658.7,2.4906]
[1724421486983,7.52067,2659.4,2658.8,3.76099]
[1724421487202,3.76039,2659.3,2658.8,3.76099]
[1724421488015,3.76053,2659.2,2658.7,3.854784]
[1724421488215,3.76053,2659.2,2658.7,2.4906]
[1724421488419,3.76053,2659.2,2658.7,6.25182]
[1724421488596,3.76053,2659.2,2658.7,2.4906]
[1724421489005,3.76053,2659.2,2658.7,6.25175]
[1724421489924,7.52118,2659.2,2658.7,2.4906]
[1724421490086,4.512648,2659.2,2658.7,2.4906]
[1724421490827,3.76053,2659.2,2658.7,2.4906]
[1724421491012,7.52117,2659.2,2658.7,2.4906]
[1724421491595,3.76053,2659.2,2658.7,2.4906]
[1724421491927,3.76053,2659.2,2658.6,7.39]
[1724421491928,9.95657,2659.2,2658.6,11.15136]
[1724421492127,3.76053,2659.2,2658.6,14.91272]
[1724421492324,3.76053,2659.2,2658.6,11.15136]
[1724421492524,4.512617,2659.2,2658.6,11.15136]
[1724421493069,4.512617,2659.2,2658.7,3.76122]
[1724421493231,3.76034,2659.4,2658.8,6.12941]
[1724421493232,3.76038,2659.3,2658.8,6.12941]
[1724421494298,3.76053,2659.2,2658.8,6.12941]
[1724421494531,3.7604,2659.3,2658.9,0.05933386]
[1724421495556,3.76055,2659.2,2658.9,0.05933386]
[1724421498399,3.76034,2659.4,2658.9,4.43914825]
[1724421498799,3.76032,2659.4,2658.9,4.43914825]
[1724421499112,7.52066,2659.4,2658.9,4.43914825]
[1724421499341,3.76032,2659.4,2658.9,4.43914825]
[1724421499522,7.52066,2659.4,2658.9,4.43914825]
[1724421500497,3.76038,2659.3,2658.9,4.43914825]
[1724421501533,3.76038,2659.3,2658.9,3.82027386]
[1724421501734,3.76032,2659.4,2658.9,3.82027386]
[1724421502481,3.76016,2659.5,2658.9,3.82027386]
[1724421502682,3.76039,2659.3,2658.9,3.82027386]
[1724421503021,3.76054,2659.2,2658.9,0.05933386]
[1724421503256,3.76074,2659.1,2658.9,0.05933386]
[1724421504155,7.52162,2659.0,2658.9,0.05933386]
[1724421504335,3.76104,2658.9,2658.6,7.39]
[1724421505973,3.76068,2659.1,2658.6,7.39]
[1724421506461,3.7602,2659.5,2658.8,3.76108]
[1724421506644,3.76045,2659.3,2658.8,3.76108]
[1724421507439,3.76069,2659.1,2658.6,11.15124]
[1724421508047,3.76089,2659.0,2658.6,7.39]
[1724421509657,3.76089,2659.0,2658.7,0.05947397]
[1724421510470,3.76053,2659.2,2658.6,3.76123]
[1724421510647,3.76053,2659.2,2658.8,0.05935651]
[1724421510853,3.76069,2659.1,2658.7,3.82070397]
[1724421511039,3.76069,2659.1,2658.9,0.05923905]
[1724421511240,3.76069,2659.1,2658.8,0.05935651]
[1724421511436,4.43468943,2659.2,2659.0,0.0591216]
[1724421511636,3.76053,2659.2,2658.9,0.05923905]
[1724421511837,4.136793,2659.1,2658.6,3.76137]
[1724421512165,7.52119,2659.2,2658.6,3.76137]
[1724421512328,3.76053,2659.2,2658.6,3.76137]
[1724421512523,7.52114,2659.2,2658.6,3.76137]
[1724421513154,3.76053,2659.2,2658.6,3.76137]
[1724421513765,3.76068,2659.1,2658.6,3.76137]
[1724421516562,3.76053,2659.2,2658.6,3.76137]
[1724421516765,3.76053,2659.2,2658.7,3.76121]
[1724421517019,3.76053,2659.2,2658.8,2.4385]
[1724421517180,7.52114,2659.2,2658.8,2.4385]
[1724421517389,3.76068,2659.1,2658.8,2.4385]
[1724421517787,3.76053,2659.2,2658.8,2.4385]
[1724421517988,7.52117,2659.2,2658.8,2.4385]
[1724421518328,7.52114,2659.2,2658.8,2.4385]
[1724421519693,3.76053,2659.2,2658.8,2.4385]
[1724421520904,3.76067,2659.1,2658.8,2.4385]
[1724421524512,3.76067,2659.1,2658.9,0.05935285]
[1724421524713,3.7604,2659.3,2658.9,0.05935285]
[1724421524714,3.76053,2659.2,2658.9,0.05935285]
[1724421525380,3.7607,2659.1,2658.9,0.05935285]
[1724421528122,3.76053,2659.2,2658.9,0.05935285]
[1724421528779,3.76039,2659.3,2658.9,0.05935285]
[1724421528977,7.5209,2659.3,2658.9,0.05935285]
[1724421529221,3.76053,2659.2,2658.9,0.05935285]
[1724421530984,3.76025,2659.4,2658.9,4.44608313]
[1724421531187,3.76025,2659.4,2659.0,2.4389]
[1724421531611,3.76025,2659.4,2659.1,0.0590914]
[1724421532021,3.7604,2659.3,2659.1,0.0590914]
[1724421533096,3.7604,2659.3,2658.7,6.03173]
[1724421533297,3.7604,2659.3,2658.8,0.05944375]
[1724421533504,3.76052,2659.2,2658.8,0.05944375]
[1724421535640,3.7604,2659.3,2658.9,2.4474]
[1724421535995,3.7604,2659.3,2659.0,0.05920884]
[1724421535996,7.52092,2659.3,2659.0,0.05920884]
[1724421536599,3.7604,2659.3,2659.0,0.05920884]
[1724421536822,3.7603,2659.4,2659.0,0.05920884]
[1724421537602,3.76016,2659.5,2659.0,3.81995884]
[1724421537798,3.76016,2659.5,2659.1,3.76066]
[1724421538024,7.52034,2659.5,2659.0,1.06203272]
[1724421538232,7.52034,2659.5,2659.0,4.82284272]
[1724421538233,7.52038,2659.5,2659.0,4.82284272]
[1724421538426,3.76016,2659.5,2659.0,8.58358272]
[1724421538617,7.52036,2659.5,2659.0,4.82277272]
[1724421538819,7.52036,2659.5,2659.0,8.58351272]
[1724421538820,3.76016,2659.5,2659.0,8.58351272]
[1724421539026,7.52036,2659.5,2659.0,4.82277272]
[1724421539241,7.52037,2659.5,2659.0,4.82277272]
[1724421539534,7.52037,2659.5,2659.0,0.05920884]
[1724421539535,3.76016,2659.5,2659.0,0.05920884]
[1724421539933,3.76034,2659.4,2659.0,0.05920884]
[1724421540098,3.76059,2659.2,2659.0,0.05920884]
[1724421541204,3.76038,2659.3,2658.7,13.44501]
[1724421541407,3.76052,2659.2,2659.1,0.05890932]
[1724421541605,7.52088,2659.3,2658.7,13.44501]
[1724421541817,7.52088,2659.3,2659.1,0.05890932]
[1724421542015,3.76019,2659.5,2659.1,2.449]
[1724421542215,3.76019,2659.5,2659.2,0.05879189]
[1724421542420,3.76019,2659.5,2659.0,2.3308]
[1724421542615,3.76019,2659.5,2659.3,0.05871618]
[1724421542818,4.812194,2659.5,2659.0,6.0916]
[1724421543023,3.76019,2659.5,2659.4,0.05859877]
[1724421543323,0.58980886,2659.4,2659.0,6.0916]
[1724421543830,0.58980886,2659.4,2659.1,0.07520563]
[1724421544139,0.58980886,2659.4,2659.2,2.2709]
[1724421544309,3.75959,2659.9,2659.2,6.03133]
[1724421544511,0.58976304,2659.8,2659.2,6.03133]
[1724421544739,0.58976304,2659.8,2659.2,7.75706056]
[1724421545047,4.34946304,2659.8,2659.2,7.75706056]
[1724421545453,0.58976304,2659.8,2659.4,2.2519]
[1724421545705,0.58976304,2659.8,2659.7,6.01172]
[1724421545814,3.75858,2660.6,2659.9,3.75944]
[1724421546008,3.75858,2660.6,2660.0,3.83456893]
[1724421546009,1.364057,2660.6,2660.0,3.83456893]
[1724421546377,3.75815,2660.9,2660.2,3.75908]
[1724421546518,3.75826,2660.8,2660.1,6.01105]
[1724421546717,3.75826,2660.8,2660.2,0.07517171]
[1724421547035,3.75799,2661.0,2660.2,3.83426171]
[1724421547351,3.75799,2661.0,2660.4,6.0107]
[1724421547557,3.75799,2661.0,2660.5,0.07516592]
[1724421547558,4.509563,2661.0,2660.5,0.07516592]
[1724421547760,0.751573,2661.0,2660.5,0.07516592]
[1724421548065,3.75748,2661.4,2660.8,3.75826]
[1724421548290,3.75748,2661.4,2660.6,6.01044]
[1724421548816,3.75748,2661.4,2660.7,3.7584]
[1724421549912,3.0,2661.3,2660.7,3.7584]
[1724421550157,3.75664,2662.0,2661.4,2.3554]
[1724421550158,3.75668,2662.0,2661.4,2.3554]
[1724421550473,2.339,2662.5,2661.4,2.3554]
[1724421550474,3.75672,2661.9,2661.4,2.3554]
[1724421551440,3.75662,2662.0,2661.4,2.3554]
[1724421551646,3.75645,2662.1,2661.4,2.3554]
[1724421551647,4.508047,2661.9,2661.4,2.3554]
[1724421552525,0.751307,2661.9,2661.4,6.11281]
[1724421552718,3.0,2662.0,2661.4,6.11281]